Workbook

Sheet Vacanze
H2: CFU | K2: Ore
A3: Corso di Laurea | B3: INSEGNAMENTO | C3: MODULO | D3: anno | E3: semestre | F3: SSD MODULO | G3: CFU Totali | H3: Lez. | I3: Es front | J3: Lab | K3: Lez. | L3: Es front | M3: Lab | N3: Dipartimento | O3: front | P3: labor. | Q3: Costo complessivo lordo per eventuali contratti ad esterni | R3: Compenso netto per eventuali contratti ad esterni | S3: bando
A4: LT Scienze Biologiche | B4: Lingua Inglese c.A | D4: 2 | E4: I/II | F4: L-LIN/12 | G4: 4 | H4: 4 | K4: 32 | O4: C | P4: A | Q4: =((SUMIF('Costi orari'!A$2:A$6,O4,'Costi orari'!F$2:F$6)*K4)+((SUMIF('Costi orari'!A$2:A$6,P4,'Costi orari'!F$2:F$6)*L4)+((SUMIF('Costi orari'!A$2:A$6,P4,'Costi orari'!F$2:F$6)*M4)))) -> 1222.848 | R4: =((SUMIF('Costi orari'!A$2:A$6,O4,'Costi orari'!E$2:E$6)*K4)+((SUMIF('Costi orari'!A$2:A$6,P4,'Costi orari'!E$2:E$6)*L4)+((SUMIF('Costi orari'!A$2:A$6,P4,'Costi orari'!E$2:E$6)*M4)))) -> 968 | S4: 1 | T4: 2
A5: LT Scienze Biologiche | B5: Lingua Inglese c.B | D5: 2 | E5: I/II | F5: L-LIN/12 | G5: 4 | H5: 4 | K5: 32 | O5: C | P5: A | Q5: =((SUMIF('Costi orari'!A$2:A$6,O5,'Costi orari'!F$2:F$6)*K5)+((SUMIF('Costi orari'!A$2:A$6,P5,'Costi orari'!F$2:F$6)*L5)+((SUMIF('Costi orari'!A$2:A$6,P5,'Costi orari'!F$2:F$6)*M5)))) -> 1222.848 | R5: =((SUMIF('Costi orari'!A$2:A$6,O5,'Costi orari'!E$2:E$6)*K5)+((SUMIF('Costi orari'!A$2:A$6,P5,'Costi orari'!E$2:E$6)*L5)+((SUMIF('Costi orari'!A$2:A$6,P5,'Costi orari'!E$2:E$6)*M5)))) -> 968 | S5: 1 | T5: 2
A6: LT Scienze Biologiche | B6: Fisica | C6: Fisica per Biologia c.B | D6: 1 | E6: II | F6: FIS/07 | G6: 6 | H6: 5 | I6: 1 | K6: 40 | L6: 15 | O6: C | P6: A | Q6: =((SUMIF('Costi orari'!A$2:A$6,O6,'Costi orari'!F$2:F$6)*K6)+((SUMIF('Costi orari'!A$2:A$6,P6,'Costi orari'!F$2:F$6)*L6)+((SUMIF('Costi orari'!A$2:A$6,P6,'Costi orari'!F$2:F$6)*M6)))) -> 2002.26 | R6: =((SUMIF('Costi orari'!A$2:A$6,O6,'Costi orari'!E$2:E$6)*K6)+((SUMIF('Costi orari'!A$2:A$6,P6,'Costi orari'!E$2:E$6)*L6)+((SUMIF('Costi orari'!A$2:A$6,P6,'Costi orari'!E$2:E$6)*M6)))) -> 1585 | S6: 1 | T6: 2
A7: LT Scienze Biologiche | B7: Chimica I | C7: Chimica Generale c.B | E7: I | F7: CHIM/03 | S7: 1
A8: LT Scienze Biologiche | B8: Igiene c. A+B | E8: II | F8: MED/42 | G8: 6 | S8: 1
A9: LM Biologia Ambientale | B9: Zoologia Applicata | D9: 1 | E9: I | F9: BIO/05 | G9: 6 | H9: 5 | I9: 1 | K9: 40 | L9: 15 | O9: C | P9: A | Q9: =((SUMIF('Costi orari'!A$2:A$6,O9,'Costi orari'!F$2:F$6)*K9)+((SUMIF('Costi orari'!A$2:A$6,P9,'Costi orari'!F$2:F$6)*L9)+((SUMIF('Costi orari'!A$2:A$6,P9,'Costi orari'!F$2:F$6)*M9)))) -> 2002.26 | R9: =((SUMIF('Costi orari'!A$2:A$6,O9,'Costi orari'!E$2:E$6)*K9)+((SUMIF('Costi orari'!A$2:A$6,P9,'Costi orari'!E$2:E$6)*L9)+((SUMIF('Costi orari'!A$2:A$6,P9,'Costi orari'!E$2:E$6)*M9)))) -> 1585 | S9: 1 | T9: 2
A10: LM Biologia Ambientale | B10: Igiene Ambientale | E10: I | F10: MED/42 | G10: 4 | S10: 1
A11: LM Biologia Ambientale | B11: Ecofisiologia Vegetale | E11: II | F11: BIO/04 | G11: 6 | S11: 1
A12: LM Scienze Biosanitarie | B12: Parassitologia | D12: 1 | E12: I | F12: BIO/05 | G12: 4 | H12: 4 | K12: 32 | O12: C | P12: A | Q12: =((SUMIF('Costi orari'!A$2:A$6,O12,'Costi orari'!F$2:F$6)*K12)+((SUMIF('Costi orari'!A$2:A$6,P12,'Costi orari'!F$2:F$6)*L12)+((SUMIF('Costi orari'!A$2:A$6,P12,'Costi orari'!F$2:F$6)*M12)))) -> 1222.848 | R12: =((SUMIF('Costi orari'!A$2:A$6,O12,'Costi orari'!E$2:E$6)*K12)+((SUMIF('Costi orari'!A$2:A$6,P12,'Costi orari'!E$2:E$6)*L12)+((SUMIF('Costi orari'!A$2:A$6,P12,'Costi orari'!E$2:E$6)*M12)))) -> 968 | T12: 2
A13: LM Scienze Biosanitarie | B13: Microbiologia Clinica | E13: II | F13: MED/07 | G13: 4 | S13: 1
A14: LT Chimica | B14: LINGUA INGLESE | D14: 2 | E14: I | F14: L-LIN/12 | G14: 3 | I14: 3 | L14: 45 | O14: C | P14: A | Q14: =((SUMIF('Costi orari'!A$2:A$6,O14,'Costi orari'!F$2:F$6)*K14)+((SUMIF('Costi orari'!A$2:A$6,P14,'Costi orari'!F$2:F$6)*L14)+((SUMIF('Costi orari'!A$2:A$6,P14,'Costi orari'!F$2:F$6)*M14)))) -> 1421.1 | R14: =((SUMIF('Costi orari'!A$2:A$6,O14,'Costi orari'!E$2:E$6)*K14)+((SUMIF('Costi orari'!A$2:A$6,P14,'Costi orari'!E$2:E$6)*L14)+((SUMIF('Costi orari'!A$2:A$6,P14,'Costi orari'!E$2:E$6)*M14)))) -> 1125 | S14: 1 | T14: 2
A15: LT Chimica | B15: Eserc.. di Chimica Analitica (I corso) | D15: 1 | E15: II | F15: CHIM/01 | G15: 6 | H15: 3 | I15: 1 | J15: 2 | K15: 24 | L15: 15 | M15: 30 | O15: C | P15: A | Q15: =((SUMIF('Costi orari'!A$2:A$6,O15,'Costi orari'!F$2:F$6)*K15)+((SUMIF('Costi orari'!A$2:A$6,P15,'Costi orari'!F$2:F$6)*L15)+((SUMIF('Costi orari'!A$2:A$6,P15,'Costi orari'!F$2:F$6)*M15)))) -> 2338.236 | R15: =((SUMIF('Costi orari'!A$2:A$6,O15,'Costi orari'!E$2:E$6)*K15)+((SUMIF('Costi orari'!A$2:A$6,P15,'Costi orari'!E$2:E$6)*L15)+((SUMIF('Costi orari'!A$2:A$6,P15,'Costi orari'!E$2:E$6)*M15)))) -> 1851 | S15: 1 | T15: 2
A16: LT Chimica | B16: CHIMICA INORGANICA (III CORSO) | E16: II | F16: CHIM/03 | G16: 6 | S16: 1
A17: LT Fisica | B17: ISTITUZIONI DI FISICA NUCLEARE E SUBNUCLLEARE | C17: MOD. B: FISICA SUBNUCLEARE | E17: II | F17: FIS/04 | G17: 4 | S17: 1
A18: LM Fisica | B18: FISICA DEI LASER | E18: I | F18: FIS/03 | G18: 6 | S18: 1
A19: LM Fisica | B19: LABORATORIO DI FISICA DELL'INTERAZIONE RADIAZIONE-MATERIA | E19: I | F19: FIS/01 | G19: 6 | S19: 1
A20: LM Fisica | B20: FISICA DEI RAGGI COSMICI | E20: I | F20: FIS/01 | G20: 6 | S20: 1
A21: LM Fisica | B21: TECNICHE DI SIMULAZIONE MOLECOLARE | E21: I | F21: FIS/01 | G21: 6 | S21: 1
A22: LM Fisica | B22: STRUTTURA DELLA MATERIA | D22: 1 | E22: I | F22: FIS/03 | G22: 6 | H22: 5 | I22: 1 | K22: 40 | L22: 15 | O22: C | P22: A | Q22: =((SUMIF('Costi orari'!A$2:A$6,O22,'Costi orari'!F$2:F$6)*K22)+((SUMIF('Costi orari'!A$2:A$6,P22,'Costi orari'!F$2:F$6)*L22)+((SUMIF('Costi orari'!A$2:A$6,P22,'Costi orari'!F$2:F$6)*M22)))) -> 2002.26 | R22: =((SUMIF('Costi orari'!A$2:A$6,O22,'Costi orari'!E$2:E$6)*K22)+((SUMIF('Costi orari'!A$2:A$6,P22,'Costi orari'!E$2:E$6)*L22)+((SUMIF('Costi orari'!A$2:A$6,P22,'Costi orari'!E$2:E$6)*M22)))) -> 1585 | S22: 1 | T22: 2
A23: LM Fisica | B23: FISICA MEDICA | C23: MOD. A: ELABORAZIONE DI SEGNALI E IMMAGINI | D23: 1 | E23: II | F23: FIS/01 | G23: 6 | H23: 5 | I23: 1 | K23: 40 | L23: 15 | O23: C | P23: A | Q23: =((SUMIF('Costi orari'!A$2:A$6,O23,'Costi orari'!F$2:F$6)*K23)+((SUMIF('Costi orari'!A$2:A$6,P23,'Costi orari'!F$2:F$6)*L23)+((SUMIF('Costi orari'!A$2:A$6,P23,'Costi orari'!F$2:F$6)*M23)))) -> 2002.26 | R23: =((SUMIF('Costi orari'!A$2:A$6,O23,'Costi orari'!E$2:E$6)*K23)+((SUMIF('Costi orari'!A$2:A$6,P23,'Costi orari'!E$2:E$6)*L23)+((SUMIF('Costi orari'!A$2:A$6,P23,'Costi orari'!E$2:E$6)*M23)))) -> 1585 | S23: 1 | T23: 2
A24: LM Fisica | B24: OTTICA MODERNA | C24: MOD. A: OTTICA NON LINEARE E SPETTROSCOPIA | D24: 1 | E24: II | F24: FIS/03 | G24: 6 | H24: 5 | I24: 1 | K24: 40 | L24: 15 | O24: C | P24: A | Q24: =((SUMIF('Costi orari'!A$2:A$6,O24,'Costi orari'!F$2:F$6)*K24)+((SUMIF('Costi orari'!A$2:A$6,P24,'Costi orari'!F$2:F$6)*L24)+((SUMIF('Costi orari'!A$2:A$6,P24,'Costi orari'!F$2:F$6)*M24)))) -> 2002.26 | R24: =((SUMIF('Costi orari'!A$2:A$6,O24,'Costi orari'!E$2:E$6)*K24)+((SUMIF('Costi orari'!A$2:A$6,P24,'Costi orari'!E$2:E$6)*L24)+((SUMIF('Costi orari'!A$2:A$6,P24,'Costi orari'!E$2:E$6)*M24)))) -> 1585 | S24: 1 | T24: 2
A25: LM Fisica | B25: OTTICA MODERNA | C25: MOD.B OPTOELETTRONICA E NANOTECNOLOGIE | D25: 1 | E25: II | F25: FIS/03 | G25: 6 | H25: 5 | I25: 1 | K25: 40 | L25: 15 | O25: C | P25: A | Q25: =((SUMIF('Costi orari'!A$2:A$6,O25,'Costi orari'!F$2:F$6)*K25)+((SUMIF('Costi orari'!A$2:A$6,P25,'Costi orari'!F$2:F$6)*L25)+((SUMIF('Costi orari'!A$2:A$6,P25,'Costi orari'!F$2:F$6)*M25)))) -> 2002.26 | R25: =((SUMIF('Costi orari'!A$2:A$6,O25,'Costi orari'!E$2:E$6)*K25)+((SUMIF('Costi orari'!A$2:A$6,P25,'Costi orari'!E$2:E$6)*L25)+((SUMIF('Costi orari'!A$2:A$6,P25,'Costi orari'!E$2:E$6)*M25)))) -> 1585 | S25: 1 | T25: 2
A26: LT Informatica | B26: Gestione della Conoscenza di Impresa | D26: 3 | E26: I | F26: ING-INF/05 | G26: 9 | H26: 7 | J26: 2 | K26: 56 | M26: 30 | O26: D | P26: B | Q26: =((SUMIF('Costi orari'!A$2:A$6,O26,'Costi orari'!F$2:F$6)*K26)+((SUMIF('Costi orari'!A$2:A$6,P26,'Costi orari'!F$2:F$6)*L26)+((SUMIF('Costi orari'!A$2:A$6,P26,'Costi orari'!F$2:F$6)*M26)))) -> 3693.3 | R26: =((SUMIF('Costi orari'!A$2:A$6,O26,'Costi orari'!E$2:E$6)*K26)+((SUMIF('Costi orari'!A$2:A$6,P26,'Costi orari'!E$2:E$6)*L26)+((SUMIF('Costi orari'!A$2:A$6,P26,'Costi orari'!E$2:E$6)*M26)))) -> 3091.5 | S26: 1 | T26: 2
A27: LT Informatica | B27: Fondamenti dell'Informatica | E27: I | F27: INF-01 | S27: 1
A28: LT Informatica | B28: Matematica discreta | E28: I | F28: MAT / 03 | S28: 1
A29: LT Informatica | B29: Ingegneria della Conoscenza e Sistemi Esperti | E29: II | F29: ING-INF / 05 | S29: 1
A30: LT Informatica | B30: Interazione Uomo-Macchina | E30: II | F30: INF / 01 | S30: 1
A31: LT Informatica | B31: Modelli e Metodi per la Sicurezza delle Applicazioni | D31: 3 | E31: II | F31: INF / 01 | G31: 6 | H31: 4 | J31: 2 | K31: 32 | M31: 30 | O31: D | P31: B | Q31: =((SUMIF('Costi orari'!A$2:A$6,O31,'Costi orari'!F$2:F$6)*K31)+((SUMIF('Costi orari'!A$2:A$6,P31,'Costi orari'!F$2:F$6)*L31)+((SUMIF('Costi orari'!A$2:A$6,P31,'Costi orari'!F$2:F$6)*M31)))) -> 2601.78 | R31: =((SUMIF('Costi orari'!A$2:A$6,O31,'Costi orari'!E$2:E$6)*K31)+((SUMIF('Costi orari'!A$2:A$6,P31,'Costi orari'!E$2:E$6)*L31)+((SUMIF('Costi orari'!A$2:A$6,P31,'Costi orari'!E$2:E$6)*M31)))) -> 2155.5 | S31: 1 | T31: 2
A32: LT Informatica | B32: Metodi Avanzati di Programmazione + lab. | E32: II | F32: INF / 01 | S32: 1
A33: LT Informatica e Comunicazione Digitale | B33: Informatica giuridica | E33: II | F33: IUS/20 | G33: 6 | S33: 1
A34: LT Informatica e Comunicazione Digitale | B34: Tecnologie informatiche per la formazione a distanza | E34: II | F34: INF/01 | G34: 6 | S34: 1
A35: LT Informatica e Comunicazione Digitale | B35: Reti di Calcolatori e Comunicazione Digitale | E35: II | F35: INF / 01 | S35: 1
A36: LT Informatica e Comunicazione Digitale | B36: Agenti distribuiti | E36: II | F36: INF/01 | S36: 1
A37: LT Informatica e Comunicazione Digitale | B37: Complementi di linguaggi di Programmazione | E37: II | F37: INF/01 | S37: 1
A38: LT Informatica e Comunicazione Digitale | B38: Editoria multimediale | E38: II | F38: INF/01 | S38: 1
A39: LT Informatica e Comunicazione Digitale | B39: Sistemi Intelligenti per la comunicazione digitale | E39: II | F39: INF/01 | S39: 1
A40: LT Informatica e tecnologia per la produzione del software | B40: Progettazione di basi di dati con modelli di nuova generazione | D40: 3 | F40: INF/01 | G40: 6 | H40: 4 | I40: 2 | K40: 32 | L40: 30 | O40: C | P40: A | Q40: =((SUMIF('Costi orari'!A$2:A$6,O40,'Costi orari'!F$2:F$6)*K40)+((SUMIF('Costi orari'!A$2:A$6,P40,'Costi orari'!F$2:F$6)*L40)+((SUMIF('Costi orari'!A$2:A$6,P40,'Costi orari'!F$2:F$6)*M40)))) -> 2170.248 | R40: =((SUMIF('Costi orari'!A$2:A$6,O40,'Costi orari'!E$2:E$6)*K40)+((SUMIF('Costi orari'!A$2:A$6,P40,'Costi orari'!E$2:E$6)*L40)+((SUMIF('Costi orari'!A$2:A$6,P40,'Costi orari'!E$2:E$6)*M40)))) -> 1718 | T40: 2
A41: LT Informatica e tecnologia per la produzione del software | B41: Programmazione per il Web + LAB. | E41: I | F41: INF / 01 | S41: 1
A42: LT Informatica e tecnologia per la produzione del software | B42: Gestione della conoscenza di impresa | E42: I | F42: ING-INF / 05 | S42: 1
A43: LT Informatica e tecnologia per la produzione del software | B43: Economia della Innovazione | E43: I | F43: SECS-P/08 | G43: 6 | S43: 1
A44: LT Informatica Brindisi | B44: Lingua Inglese | D44: 3 | E44: I | F44: L-LIN/12 | G44: 6 | H44: 4 | I44: 2 | K44: 32 | L44: 30 | O44: C | P44: A | S44: 1 | T44: 2
A45: LT Informatica Brindisi | B45: Architettura degli elaboratori + lab. | D45: 1 | E45: I | F45: INF/01 | G45: 9 | H45: 7 | J45: 2 | K45: 56 | M45: 30 | O45: C | P45: A | S45: 1 | T45: 2
A46: LT Informatica Brindisi | B46: Modelli di Valutazione e Miglioramento del SW | D46: 3 | E46: I | F46: ING-INF/05 | G46: 9 | H46: 7 | J46: 2 | K46: 56 | M46: 30 | O46: C | P46: A | S46: 1 | T46: 2
A47: LT Informatica Brindisi | B47: Programmazione + Lab. | E47: I | F47: INF / 01 | S47: 1
A48: LT Informatica Brindisi | B48: Matematica Discreta | D48: 1 | E48: I | F48: MAT/03 | G48: 9 | H48: 7 | J48: 2 | K48: 56 | M48: 30 | N48: Matematica | S48: 1
A49: LT Informatica Brindisi | B49: Fondamenti di Fisica | D49: 2 | E49: II | F49: FIS/07 | G49: 6 | H49: 4 | J49: 2 | K49: 32 | M49: 30 | O49: C | P49: A | S49: 1 | T49: 2
A50: LT Informatica Brindisi | B50: Sistemi di elaborazione intelligenti | D50: 3 | E50: II | F50: ING-INF/05 | G50: 9 | H50: 7 | J50: 2 | K50: 56 | M50: 30 | O50: C | P50: A | S50: 1 | T50: 2
A51: LT Informatica Brindisi | B51: Laboratorio di Informatica | D51: 1 | E51: II | F51: INF/01 | G51: 6 | H51: 4 | J51: 2 | K51: 32 | M51: 30 | O51: C | P51: A | S51: 1 | T51: 2
A52: LT Informatica Brindisi | B52: Metodi avanzati di Programmazione + Lab | D52: 2 | E52: II | F52: ING-INF/05 | G52: 9 | H52: 7 | J52: 2 | K52: 56 | M52: 30 | O52: C | P52: A | S52: 1 | T52: 2
A53: LT Informatica Brindisi | B53: Analisi Matematica | E53: II | F53: MAT / 05 | S53: 1
A54: LT Informatica Brindisi | B54: Linguaggi di Programmazione + Lab. | E54: II | F54: INF / 01 | S54: 1
A55: LT Informatica Brindisi | B55: Interazione Uomo-Macchina | E55: II | F55: INF / 01 | S55: 1
A56: LT Informatica Brindisi | B56: Reti di Calcolatori + Lab. | D56: 3 | E56: II | F56: ING-INF / 05 | G56: 9 | H56: 7 | J56: 2 | K56: 56 | M56: 30 | O56: C | P56: A | S56: 1 | T56: 2
A57: LM Informatica | B57: Interfaccie intelligenti | E57: I | S57: 1
A58: LM Informatica | B58: Basi di Dati II | E58: I | F58: INF / 01 | S58: 1
A59: LM Informatica | B59: Progettazione e produzione di contenuti digitali | E59: I | F59: INF / 01 | S59: 1
A60: LM Informatica | B60: Modelli per i sistemi distribuiti cooperativi | E60: I | F60: INF/01 | S60: 1
A61: LM Informatica | B61: Intelligenza Artificiale | C61: (mod. B) | E61: II | F61: ING-INF/05 | S61: 1
A62: LT Matematica | B62: FISICA 2 | D62: 2 | E62: II | F62: FIS/01 | G62: 9 | H62: 4.5 | I62: 4.5 | K62: 36 | L62: 36 | N62: Fisica | S62: 1
A63: LT Matematica | B63: GEOMETRIA 2 | D63: 1 | E63: II | F63: MAT/03 | G63: 8 | H63: 6 | I63: 2 | K63: 48 | L63: 30 | N63: Matematica | S63: 1
A64: LT Matematica | B64: GEOMETRIA DIFFERENZIALE | E64: II | F64: MAT/03 | G64: 7 | S64: 1
A65: LT Matematica | B65: LINGUA INGLESE 1 | C65: corso A | D65: 1 | E65: II | F65: L-LIN/12 | G65: 3 | H65: 3 | K65: 24 | O65: C | P65: A | Q65: =((SUMIF('Costi orari'!A$2:A$6,O65,'Costi orari'!F$2:F$6)*K65)+((SUMIF('Costi orari'!A$2:A$6,P65,'Costi orari'!F$2:F$6)*L65)+((SUMIF('Costi orari'!A$2:A$6,P65,'Costi orari'!F$2:F$6)*M65)))) -> 917.136 | R65: =((SUMIF('Costi orari'!A$2:A$6,O65,'Costi orari'!E$2:E$6)*K65)+((SUMIF('Costi orari'!A$2:A$6,P65,'Costi orari'!E$2:E$6)*L65)+((SUMIF('Costi orari'!A$2:A$6,P65,'Costi orari'!E$2:E$6)*M65)))) -> 726 | S65: 1 | T65: 2
A66: LT Matematica | B66: LINGUA INGLESE 1 | C66: corso B | D66: 1 | E66: II | F66: L-LIN/12 | G66: 3 | H66: 3 | K66: 24 | O66: C | P66: A | Q66: =((SUMIF('Costi orari'!A$2:A$6,O66,'Costi orari'!F$2:F$6)*K66)+((SUMIF('Costi orari'!A$2:A$6,P66,'Costi orari'!F$2:F$6)*L66)+((SUMIF('Costi orari'!A$2:A$6,P66,'Costi orari'!F$2:F$6)*M66)))) -> 917.136 | R66: =((SUMIF('Costi orari'!A$2:A$6,O66,'Costi orari'!E$2:E$6)*K66)+((SUMIF('Costi orari'!A$2:A$6,P66,'Costi orari'!E$2:E$6)*L66)+((SUMIF('Costi orari'!A$2:A$6,P66,'Costi orari'!E$2:E$6)*M66)))) -> 726 | S66: 1 | T66: 2
A67: LM Matematica | B67: ISTITUZIONI DI ECONOMIA MATEMATICA | E67: I | F67: SECS-P/01 | G67: 7 | S67: 1
A68: LM Matematica | B68: EQUAZIONI DI EVOLUZIONE | D68: 2 | E68: II | F68: MAT/05 | G68: 7 | H68: 6.5 | I68: 0.5 | K68: 52 | L68: 8 | O68: C | P68: A | Q68: =((SUMIF('Costi orari'!A$2:A$6,O68,'Costi orari'!F$2:F$6)*K68)+((SUMIF('Costi orari'!A$2:A$6,P68,'Costi orari'!F$2:F$6)*L68)+((SUMIF('Costi orari'!A$2:A$6,P68,'Costi orari'!F$2:F$6)*M68)))) -> 2239.768 | R68: =((SUMIF('Costi orari'!A$2:A$6,O68,'Costi orari'!E$2:E$6)*K68)+((SUMIF('Costi orari'!A$2:A$6,P68,'Costi orari'!E$2:E$6)*L68)+((SUMIF('Costi orari'!A$2:A$6,P68,'Costi orari'!E$2:E$6)*M68)))) -> 1773 | S68: 1 | T68: 2
A69: LM Matematica | B69: LINGUA INGLESE 2 | D69: 1 | E69: II | F69: L-LIN/12 | G69: 3 | H69: 3 | K69: 24 | O69: C | P69: A | Q69: =((SUMIF('Costi orari'!A$2:A$6,O69,'Costi orari'!F$2:F$6)*K69)+((SUMIF('Costi orari'!A$2:A$6,P69,'Costi orari'!F$2:F$6)*L69)+((SUMIF('Costi orari'!A$2:A$6,P69,'Costi orari'!F$2:F$6)*M69)))) -> 917.136 | R69: =((SUMIF('Costi orari'!A$2:A$6,O69,'Costi orari'!E$2:E$6)*K69)+((SUMIF('Costi orari'!A$2:A$6,P69,'Costi orari'!E$2:E$6)*L69)+((SUMIF('Costi orari'!A$2:A$6,P69,'Costi orari'!E$2:E$6)*M69)))) -> 726 | S69: 1 | T69: 2
A70: LM Matematica | B70: METODI ANALITICI IN FINANZA | E70: II | F70: MAT/05 | G70: 7 | S70: 1
A71: LT Scienza dei Materiali | B71: MATERIALI ORGANICI PER FOTONICA ED ELETTRONICA | E71: I | F71: CHIM/06-05 | G71: 5 | S71: 1
A72: LT Scienza dei Materiali | B72: MATERIALI E DISPOSITIVI OPTOELETTRONICI | D72: 3 | E72: I | F72: FIS/03 | G72: 4 | H72: 4 | K72: 32 | O72: C | P72: A | Q72: =((SUMIF('Costi orari'!A$2:A$6,O72,'Costi orari'!F$2:F$6)*K72)+((SUMIF('Costi orari'!A$2:A$6,P72,'Costi orari'!F$2:F$6)*L72)+((SUMIF('Costi orari'!A$2:A$6,P72,'Costi orari'!F$2:F$6)*M72)))) -> 1222.848 | R72: =((SUMIF('Costi orari'!A$2:A$6,O72,'Costi orari'!E$2:E$6)*K72)+((SUMIF('Costi orari'!A$2:A$6,P72,'Costi orari'!E$2:E$6)*L72)+((SUMIF('Costi orari'!A$2:A$6,P72,'Costi orari'!E$2:E$6)*M72)))) -> 968 | S72: 1 | T72: 2
A73: LT Scienza dei Materiali | B73: INGLESE | D73: 1 | E73: I | F73: L-LIN/12 | G73: 4 | H73: 4 | K73: 32 | O73: C | P73: A | Q73: =((SUMIF('Costi orari'!A$2:A$6,O73,'Costi orari'!F$2:F$6)*K73)+((SUMIF('Costi orari'!A$2:A$6,P73,'Costi orari'!F$2:F$6)*L73)+((SUMIF('Costi orari'!A$2:A$6,P73,'Costi orari'!F$2:F$6)*M73)))) -> 1222.848 | R73: =((SUMIF('Costi orari'!A$2:A$6,O73,'Costi orari'!E$2:E$6)*K73)+((SUMIF('Costi orari'!A$2:A$6,P73,'Costi orari'!E$2:E$6)*L73)+((SUMIF('Costi orari'!A$2:A$6,P73,'Costi orari'!E$2:E$6)*M73)))) -> 968 | S73: 1 | T73: 2
A74: LT Scienza dei Materiali | B74: FISICA DEI MATERIALI CON LABORATORIO | D74: 2 | E74: II | F74: FIS/03 | G74: 6 | H74: 4 | I74: 2 | K74: 32 | L74: 30 | O74: C | P74: A | Q74: =((SUMIF('Costi orari'!A$2:A$6,O74,'Costi orari'!F$2:F$6)*K74)+((SUMIF('Costi orari'!A$2:A$6,P74,'Costi orari'!F$2:F$6)*L74)+((SUMIF('Costi orari'!A$2:A$6,P74,'Costi orari'!F$2:F$6)*M74)))) -> 2170.248 | R74: =((SUMIF('Costi orari'!A$2:A$6,O74,'Costi orari'!E$2:E$6)*K74)+((SUMIF('Costi orari'!A$2:A$6,P74,'Costi orari'!E$2:E$6)*L74)+((SUMIF('Costi orari'!A$2:A$6,P74,'Costi orari'!E$2:E$6)*M74)))) -> 1718 | S74: 1 | T74: 2
A75: LM Scienza e Tecnologia dei Materiali | B75: CHIMICA DEI MATERIALI ORGANICI | E75: I | F75: CHIM/06 | G75: 8 | S75: 1
A76: LM Scienza e Tecnologia dei Materiali | B76: INGEGNERIA DEI MATERIALI | D76: 1 | E76: II | F76: ING-IND/22 | G76: 8 | H76: 8 | K76: 64 | O76: C | P76: A | Q76: =((SUMIF('Costi orari'!A$2:A$6,O76,'Costi orari'!F$2:F$6)*K76)+((SUMIF('Costi orari'!A$2:A$6,P76,'Costi orari'!F$2:F$6)*L76)+((SUMIF('Costi orari'!A$2:A$6,P76,'Costi orari'!F$2:F$6)*M76)))) -> 2445.696 | R76: =((SUMIF('Costi orari'!A$2:A$6,O76,'Costi orari'!E$2:E$6)*K76)+((SUMIF('Costi orari'!A$2:A$6,P76,'Costi orari'!E$2:E$6)*L76)+((SUMIF('Costi orari'!A$2:A$6,P76,'Costi orari'!E$2:E$6)*M76)))) -> 1936 | S76: 1 | T76: 2
A77: LM Scienza e Tecnologia dei Materiali | B77: OTTICA NON LINEARE E SPETTROSCOPIA | D77: 1 | E77: II | F77: FIS/01-03 | G77: 6 | H77: 5 | I77: 1 | K77: 40 | L77: 15 | O77: C | P77: A | Q77: =((SUMIF('Costi orari'!A$2:A$6,O77,'Costi orari'!F$2:F$6)*K77)+((SUMIF('Costi orari'!A$2:A$6,P77,'Costi orari'!F$2:F$6)*L77)+((SUMIF('Costi orari'!A$2:A$6,P77,'Costi orari'!F$2:F$6)*M77)))) -> 2002.26 | R77: =((SUMIF('Costi orari'!A$2:A$6,O77,'Costi orari'!E$2:E$6)*K77)+((SUMIF('Costi orari'!A$2:A$6,P77,'Costi orari'!E$2:E$6)*L77)+((SUMIF('Costi orari'!A$2:A$6,P77,'Costi orari'!E$2:E$6)*M77)))) -> 1585 | S77: 1 | T77: 2
A78: LM Scienza e Tecnologia dei Materiali | B78: FISICA DEI DISPOSITIVI II | D78: 1 | E78: II | F78: FIS/01-03 | G78: 6 | H78: 4 | I78: 2 | K78: 32 | L78: 30 | O78: C | P78: A | Q78: =((SUMIF('Costi orari'!A$2:A$6,O78,'Costi orari'!F$2:F$6)*K78)+((SUMIF('Costi orari'!A$2:A$6,P78,'Costi orari'!F$2:F$6)*L78)+((SUMIF('Costi orari'!A$2:A$6,P78,'Costi orari'!F$2:F$6)*M78)))) -> 2170.248 | R78: =((SUMIF('Costi orari'!A$2:A$6,O78,'Costi orari'!E$2:E$6)*K78)+((SUMIF('Costi orari'!A$2:A$6,P78,'Costi orari'!E$2:E$6)*L78)+((SUMIF('Costi orari'!A$2:A$6,P78,'Costi orari'!E$2:E$6)*M78)))) -> 1718 | S78: 1 | T78: 2
A79: LT Scienze e Tecnologie per i Beni Culturali | B79: Storia dell'arte I e II | C79: Storia dell'arte I mod | E79: I | F79: L-ART/01 | G79: 6 | S79: 1
A80: LT Scienze e Tecnologie per i Beni Culturali | B80: Storia dell'arte I e II | C80: Storia dell'arte II mod | E80: I | F80: L-ART/02 | G80: 6 | S80: 1
A81: LT Scienze e Tecnologie per i Beni Culturali | B81: Inglese | D81: 2 | E81: I | F81: L-LIN/12 | G81: 6 | H81: 4 | I81: 2 | K81: 32 | L81: 30 | O81: C | P81: A | Q81: =((SUMIF('Costi orari'!A$2:A$6,O81,'Costi orari'!F$2:F$6)*K81)+((SUMIF('Costi orari'!A$2:A$6,P81,'Costi orari'!F$2:F$6)*L81)+((SUMIF('Costi orari'!A$2:A$6,P81,'Costi orari'!F$2:F$6)*M81)))) -> 2170.248 | R81: =((SUMIF('Costi orari'!A$2:A$6,O81,'Costi orari'!E$2:E$6)*K81)+((SUMIF('Costi orari'!A$2:A$6,P81,'Costi orari'!E$2:E$6)*L81)+((SUMIF('Costi orari'!A$2:A$6,P81,'Costi orari'!E$2:E$6)*M81)))) -> 1718 | S81: 1 | T81: 2
A82: LT Scienze e Tecnologie per i Beni Culturali | B82: Archeologia | C82: I modulo | D82: 1 | E82: II | F82: L-ANT/07 | G82: 6 | H82: 4 | I82: 2 | K82: 32 | L82: 30 | O82: C | P82: A | Q82: =((SUMIF('Costi orari'!A$2:A$6,O82,'Costi orari'!F$2:F$6)*K82)+((SUMIF('Costi orari'!A$2:A$6,P82,'Costi orari'!F$2:F$6)*L82)+((SUMIF('Costi orari'!A$2:A$6,P82,'Costi orari'!F$2:F$6)*M82)))) -> 2170.248 | R82: =((SUMIF('Costi orari'!A$2:A$6,O82,'Costi orari'!E$2:E$6)*K82)+((SUMIF('Costi orari'!A$2:A$6,P82,'Costi orari'!E$2:E$6)*L82)+((SUMIF('Costi orari'!A$2:A$6,P82,'Costi orari'!E$2:E$6)*M82)))) -> 1718 | S82: 1 | T82: 2
A83: LT Scienze e Tecnologie per i Beni Culturali | B83: Archeologia | C83: II modulo | D83: 1 | E83: II | F83: L-ANT/08 | G83: 6 | H83: 4 | I83: 2 | K83: 32 | L83: 30 | O83: C | P83: A | Q83: =((SUMIF('Costi orari'!A$2:A$6,O83,'Costi orari'!F$2:F$6)*K83)+((SUMIF('Costi orari'!A$2:A$6,P83,'Costi orari'!F$2:F$6)*L83)+((SUMIF('Costi orari'!A$2:A$6,P83,'Costi orari'!F$2:F$6)*M83)))) -> 2170.248 | R83: =((SUMIF('Costi orari'!A$2:A$6,O83,'Costi orari'!E$2:E$6)*K83)+((SUMIF('Costi orari'!A$2:A$6,P83,'Costi orari'!E$2:E$6)*L83)+((SUMIF('Costi orari'!A$2:A$6,P83,'Costi orari'!E$2:E$6)*M83)))) -> 1718 | S83: 1 | T83: 2
A84: LT Scienze e Tecnologie per i Beni Culturali | B84: Storia e tecnica del restauro | D84: 3 | E84: II | F84: ICAR/19 | G84: 6 | H84: 6 | K84: 48 | O84: C | P84: A | Q84: =((SUMIF('Costi orari'!A$2:A$6,O84,'Costi orari'!F$2:F$6)*K84)+((SUMIF('Costi orari'!A$2:A$6,P84,'Costi orari'!F$2:F$6)*L84)+((SUMIF('Costi orari'!A$2:A$6,P84,'Costi orari'!F$2:F$6)*M84)))) -> 1834.272 | R84: =((SUMIF('Costi orari'!A$2:A$6,O84,'Costi orari'!E$2:E$6)*K84)+((SUMIF('Costi orari'!A$2:A$6,P84,'Costi orari'!E$2:E$6)*L84)+((SUMIF('Costi orari'!A$2:A$6,P84,'Costi orari'!E$2:E$6)*M84)))) -> 1452 | S84: 1 | T84: 2
A85: LT Scienze e Tecnologie per i Beni Culturali | B85: Microbiologia generale | D85: 2 | E85: II | F85: BIO/19 | G85: 6 | H85: 4 | I85: 2 | K85: 32 | L85: 30 | O85: C | P85: A | Q85: =((SUMIF('Costi orari'!A$2:A$6,O85,'Costi orari'!F$2:F$6)*K85)+((SUMIF('Costi orari'!A$2:A$6,P85,'Costi orari'!F$2:F$6)*L85)+((SUMIF('Costi orari'!A$2:A$6,P85,'Costi orari'!F$2:F$6)*M85)))) -> 2170.248 | R85: =((SUMIF('Costi orari'!A$2:A$6,O85,'Costi orari'!E$2:E$6)*K85)+((SUMIF('Costi orari'!A$2:A$6,P85,'Costi orari'!E$2:E$6)*L85)+((SUMIF('Costi orari'!A$2:A$6,P85,'Costi orari'!E$2:E$6)*M85)))) -> 1718 | S85: 1 | T85: 2
A86: LT Scienze e Tecnologie per i Beni Culturali | B86: Legislazione dei beni culturali | E86: II | F86: IUS/01 | G86: 4 | S86: 1
A87: LM Scienza per la Diagnostica e Conservazione dei Beni Culturali | B87: Biologia vegetale nel restauro | D87: 1 | E87: I | F87: BIO/02 | G87: 6 | H87: 4 | I87: 2 | K87: 32 | L87: 30 | O87: C | P87: A | Q87: =((SUMIF('Costi orari'!A$2:A$6,O87,'Costi orari'!F$2:F$6)*K87)+((SUMIF('Costi orari'!A$2:A$6,P87,'Costi orari'!F$2:F$6)*L87)+((SUMIF('Costi orari'!A$2:A$6,P87,'Costi orari'!F$2:F$6)*M87)))) -> 2170.248 | R87: =((SUMIF('Costi orari'!A$2:A$6,O87,'Costi orari'!E$2:E$6)*K87)+((SUMIF('Costi orari'!A$2:A$6,P87,'Costi orari'!E$2:E$6)*L87)+((SUMIF('Costi orari'!A$2:A$6,P87,'Costi orari'!E$2:E$6)*M87)))) -> 1718 | S87: 1 | T87: 2
A88: LM Scienza per la Diagnostica e Conservazione dei Beni Culturali | B88: Microbiolgia applicata | D88: 2 | E88: I | F88: BIO/19 | G88: 6 | H88: 4 | I88: 2 | K88: 32 | L88: 30 | O88: C | P88: A | Q88: =((SUMIF('Costi orari'!A$2:A$6,O88,'Costi orari'!F$2:F$6)*K88)+((SUMIF('Costi orari'!A$2:A$6,P88,'Costi orari'!F$2:F$6)*L88)+((SUMIF('Costi orari'!A$2:A$6,P88,'Costi orari'!F$2:F$6)*M88)))) -> 2170.248 | R88: =((SUMIF('Costi orari'!A$2:A$6,O88,'Costi orari'!E$2:E$6)*K88)+((SUMIF('Costi orari'!A$2:A$6,P88,'Costi orari'!E$2:E$6)*L88)+((SUMIF('Costi orari'!A$2:A$6,P88,'Costi orari'!E$2:E$6)*M88)))) -> 1718 | S88: 1 | T88: 2
A89: LM Scienza per la Diagnostica e Conservazione dei Beni Culturali | B89: Restauro | D89: 2 | E89: I | F89: ICAR/19 | G89: 6 | H89: 4 | I89: 2 | K89: 32 | L89: 30 | O89: C | P89: A | Q89: =((SUMIF('Costi orari'!A$2:A$6,O89,'Costi orari'!F$2:F$6)*K89)+((SUMIF('Costi orari'!A$2:A$6,P89,'Costi orari'!F$2:F$6)*L89)+((SUMIF('Costi orari'!A$2:A$6,P89,'Costi orari'!F$2:F$6)*M89)))) -> 2170.248 | R89: =((SUMIF('Costi orari'!A$2:A$6,O89,'Costi orari'!E$2:E$6)*K89)+((SUMIF('Costi orari'!A$2:A$6,P89,'Costi orari'!E$2:E$6)*L89)+((SUMIF('Costi orari'!A$2:A$6,P89,'Costi orari'!E$2:E$6)*M89)))) -> 1718 | S89: 1 | T89: 2
A90: LM Scienza per la Diagnostica e Conservazione dei Beni Culturali | B90: Disegno e rilievo | D90: 1 | E90: II | F90: ICAR/17 | G90: 9 | H90: 6 | I90: 3 | K90: 48 | L90: 45 | O90: C | P90: A | Q90: =((SUMIF('Costi orari'!A$2:A$6,O90,'Costi orari'!F$2:F$6)*K90)+((SUMIF('Costi orari'!A$2:A$6,P90,'Costi orari'!F$2:F$6)*L90)+((SUMIF('Costi orari'!A$2:A$6,P90,'Costi orari'!F$2:F$6)*M90)))) -> 3255.372 | R90: =((SUMIF('Costi orari'!A$2:A$6,O90,'Costi orari'!E$2:E$6)*K90)+((SUMIF('Costi orari'!A$2:A$6,P90,'Costi orari'!E$2:E$6)*L90)+((SUMIF('Costi orari'!A$2:A$6,P90,'Costi orari'!E$2:E$6)*M90)))) -> 2577 | S90: 1 | T90: 2
A91: LT Scienze della Natura | B91: Entomologia | D91: 2 | E91: I | F91: AGR/11 | G91: 6 | H91: 6 | K91: 48 | O91: C | P91: A | Q91: =((SUMIF('Costi orari'!A$2:A$6,O91,'Costi orari'!F$2:F$6)*K91)+((SUMIF('Costi orari'!A$2:A$6,P91,'Costi orari'!F$2:F$6)*L91)+((SUMIF('Costi orari'!A$2:A$6,P91,'Costi orari'!F$2:F$6)*M91)))) -> 1834.272 | R91: =((SUMIF('Costi orari'!A$2:A$6,O91,'Costi orari'!E$2:E$6)*K91)+((SUMIF('Costi orari'!A$2:A$6,P91,'Costi orari'!E$2:E$6)*L91)+((SUMIF('Costi orari'!A$2:A$6,P91,'Costi orari'!E$2:E$6)*M91)))) -> 1452 | S91: 1 | T91: 2
A92: LT Scienze della Natura | B92: Zoologia generale e sistematica | C92: Zoologia generale e sistematica | D92: 2 | E92: II | F92: BIO/05 | H92: 7 | K92: 56 | O92: C | P92: A | Q92: =((SUMIF('Costi orari'!A$2:A$6,O92,'Costi orari'!F$2:F$6)*K92)+((SUMIF('Costi orari'!A$2:A$6,P92,'Costi orari'!F$2:F$6)*L92)+((SUMIF('Costi orari'!A$2:A$6,P92,'Costi orari'!F$2:F$6)*M92)))) -> 2139.984 | R92: =((SUMIF('Costi orari'!A$2:A$6,O92,'Costi orari'!E$2:E$6)*K92)+((SUMIF('Costi orari'!A$2:A$6,P92,'Costi orari'!E$2:E$6)*L92)+((SUMIF('Costi orari'!A$2:A$6,P92,'Costi orari'!E$2:E$6)*M92)))) -> 1694 | T92: 2
A93: LT Scienze della Natura | B93: Zoologia generale e sistematica | C93: Laboratorio di Zoologia generale e sistematica | D93: 2 | E93: II | F93: BIO/05 | I93: 2 | L93: 30 | O93: C | P93: A | Q93: =((SUMIF('Costi orari'!A$2:A$6,O93,'Costi orari'!F$2:F$6)*K93)+((SUMIF('Costi orari'!A$2:A$6,P93,'Costi orari'!F$2:F$6)*L93)+((SUMIF('Costi orari'!A$2:A$6,P93,'Costi orari'!F$2:F$6)*M93)))) -> 947.4 | R93: =((SUMIF('Costi orari'!A$2:A$6,O93,'Costi orari'!E$2:E$6)*K93)+((SUMIF('Costi orari'!A$2:A$6,P93,'Costi orari'!E$2:E$6)*L93)+((SUMIF('Costi orari'!A$2:A$6,P93,'Costi orari'!E$2:E$6)*M93)))) -> 750 | T93: 2
A94: LT Scienze della Natura | B94: Laboratorio linguistico | D94: 1 | E94: I | F94: L-LIN/12 | G94: 3 | H94: 2 | I94: 1 | K94: 16 | L94: 15 | O94: D | P94: B | Q94: =((SUMIF('Costi orari'!A$2:A$6,O94,'Costi orari'!F$2:F$6)*K94)+((SUMIF('Costi orari'!A$2:A$6,P94,'Costi orari'!F$2:F$6)*L94)+((SUMIF('Costi orari'!A$2:A$6,P94,'Costi orari'!F$2:F$6)*M94)))) -> 1300.89 | R94: =((SUMIF('Costi orari'!A$2:A$6,O94,'Costi orari'!E$2:E$6)*K94)+((SUMIF('Costi orari'!A$2:A$6,P94,'Costi orari'!E$2:E$6)*L94)+((SUMIF('Costi orari'!A$2:A$6,P94,'Costi orari'!E$2:E$6)*M94)))) -> 1077.75 | S94: 1 | T94: 2
A95: LT Scienze della Natura | B95: Botanica generale | E95: II | F95: BIO/01 | G95: 8 | S95: 1
A96: LM Scienze della Natura | B96: Inglese | D96: 1 | E96: I | F96: L-LIN/12 | G96: 3 | H96: 3 | K96: 24 | O96: C | P96: A | Q96: =((SUMIF('Costi orari'!A$2:A$6,O96,'Costi orari'!F$2:F$6)*K96)+((SUMIF('Costi orari'!A$2:A$6,P96,'Costi orari'!F$2:F$6)*L96)+((SUMIF('Costi orari'!A$2:A$6,P96,'Costi orari'!F$2:F$6)*M96)))) -> 917.136 | R96: =((SUMIF('Costi orari'!A$2:A$6,O96,'Costi orari'!E$2:E$6)*K96)+((SUMIF('Costi orari'!A$2:A$6,P96,'Costi orari'!E$2:E$6)*L96)+((SUMIF('Costi orari'!A$2:A$6,P96,'Costi orari'!E$2:E$6)*M96)))) -> 726 | S96: 1 | T96: 2
A97: LM Scienze della Natura | B97: Ecologia Marina e protezione dell'ambiente marino | D97: 2 | E97: I | F97: BIO/07 | G97: 7 | H97: 6 | I97: 1 | K97: 48 | L97: 15 | O97: C | P97: A | Q97: =((SUMIF('Costi orari'!A$2:A$6,O97,'Costi orari'!F$2:F$6)*K97)+((SUMIF('Costi orari'!A$2:A$6,P97,'Costi orari'!F$2:F$6)*L97)+((SUMIF('Costi orari'!A$2:A$6,P97,'Costi orari'!F$2:F$6)*M97)))) -> 2307.972 | R97: =((SUMIF('Costi orari'!A$2:A$6,O97,'Costi orari'!E$2:E$6)*K97)+((SUMIF('Costi orari'!A$2:A$6,P97,'Costi orari'!E$2:E$6)*L97)+((SUMIF('Costi orari'!A$2:A$6,P97,'Costi orari'!E$2:E$6)*M97)))) -> 1827 | S97: 1 | T97: 2
A98: LM Scienze della Natura | B98: Conservazione della fauna | D98: 2 | E98: I | F98: BIO/05 | G98: 6 | H98: 6 | K98: 48 | O98: C | P98: A | Q98: =((SUMIF('Costi orari'!A$2:A$6,O98,'Costi orari'!F$2:F$6)*K98)+((SUMIF('Costi orari'!A$2:A$6,P98,'Costi orari'!F$2:F$6)*L98)+((SUMIF('Costi orari'!A$2:A$6,P98,'Costi orari'!F$2:F$6)*M98)))) -> 1834.272 | R98: =((SUMIF('Costi orari'!A$2:A$6,O98,'Costi orari'!E$2:E$6)*K98)+((SUMIF('Costi orari'!A$2:A$6,P98,'Costi orari'!E$2:E$6)*L98)+((SUMIF('Costi orari'!A$2:A$6,P98,'Costi orari'!E$2:E$6)*M98)))) -> 1452 | S98: 1 | T98: 2
A99: LM Scienze della Natura | B99: Genetica di popolazione | D99: 1 | E99: II | F99: AGR/07 | G99: 6 | H99: 6 | K99: 48 | O99: C | P99: A | Q99: =((SUMIF('Costi orari'!A$2:A$6,O99,'Costi orari'!F$2:F$6)*K99)+((SUMIF('Costi orari'!A$2:A$6,P99,'Costi orari'!F$2:F$6)*L99)+((SUMIF('Costi orari'!A$2:A$6,P99,'Costi orari'!F$2:F$6)*M99)))) -> 1834.272 | R99: =((SUMIF('Costi orari'!A$2:A$6,O99,'Costi orari'!E$2:E$6)*K99)+((SUMIF('Costi orari'!A$2:A$6,P99,'Costi orari'!E$2:E$6)*L99)+((SUMIF('Costi orari'!A$2:A$6,P99,'Costi orari'!E$2:E$6)*M99)))) -> 1452 | S99: 1 | T99: 2
A100: LT Scienze Geologiche | B100: Geologia tecnica | D100: 3 | E100: I | F100: GEO/05 | G100: 6 | H100: 5 | I100: 1 | K100: 40 | L100: 15 | O100: C | P100: A | Q100: =((SUMIF('Costi orari'!A$2:A$6,O100,'Costi orari'!F$2:F$6)*K100)+((SUMIF('Costi orari'!A$2:A$6,P100,'Costi orari'!F$2:F$6)*L100)+((SUMIF('Costi orari'!A$2:A$6,P100,'Costi orari'!F$2:F$6)*M100)))) -> 2002.26 | R100: =((SUMIF('Costi orari'!A$2:A$6,O100,'Costi orari'!E$2:E$6)*K100)+((SUMIF('Costi orari'!A$2:A$6,P100,'Costi orari'!E$2:E$6)*L100)+((SUMIF('Costi orari'!A$2:A$6,P100,'Costi orari'!E$2:E$6)*M100)))) -> 1585 | S100: 1 | T100: 2
A101: LT Scienze Geologiche | B101: Inglese | D101: 1 | E101: I | F101: L-LIN/12 | G101: 4 | H101: 4 | K101: 32 | O101: C | P101: A | Q101: =((SUMIF('Costi orari'!A$2:A$6,O101,'Costi orari'!F$2:F$6)*K101)+((SUMIF('Costi orari'!A$2:A$6,P101,'Costi orari'!F$2:F$6)*L101)+((SUMIF('Costi orari'!A$2:A$6,P101,'Costi orari'!F$2:F$6)*M101)))) -> 1222.848 | R101: =((SUMIF('Costi orari'!A$2:A$6,O101,'Costi orari'!E$2:E$6)*K101)+((SUMIF('Costi orari'!A$2:A$6,P101,'Costi orari'!E$2:E$6)*L101)+((SUMIF('Costi orari'!A$2:A$6,P101,'Costi orari'!E$2:E$6)*M101)))) -> 968 | S101: 1 | T101: 2
A102: LM Scienze Geologiche e Geofisiche | B102: Metodi Matematico-numerici per la Geofisica | D102: 2 | E102: I | F102: FIS/02-07 | G102: 10 | H102: 7 | I102: 3 | K102: 56 | L102: 45 | O102: C | P102: A | Q102: =((SUMIF('Costi orari'!A$2:A$6,O102,'Costi orari'!F$2:F$6)*K102)+((SUMIF('Costi orari'!A$2:A$6,P102,'Costi orari'!F$2:F$6)*L102)+((SUMIF('Costi orari'!A$2:A$6,P102,'Costi orari'!F$2:F$6)*M102)))) -> 3561.084 | R102: =((SUMIF('Costi orari'!A$2:A$6,O102,'Costi orari'!E$2:E$6)*K102)+((SUMIF('Costi orari'!A$2:A$6,P102,'Costi orari'!E$2:E$6)*L102)+((SUMIF('Costi orari'!A$2:A$6,P102,'Costi orari'!E$2:E$6)*M102)))) -> 2819 | S102: 1 | T102: 2
A103: LM Scienze Geologiche e Geofisiche | B103: Meccanica dei Geosistemi | D103: 1 | E103: II | F103: GEO/10 | G103: 7 | H103: 6 | I103: 1 | K103: 48 | L103: 15 | O103: C | P103: A | Q103: =((SUMIF('Costi orari'!A$2:A$6,O103,'Costi orari'!F$2:F$6)*K103)+((SUMIF('Costi orari'!A$2:A$6,P103,'Costi orari'!F$2:F$6)*L103)+((SUMIF('Costi orari'!A$2:A$6,P103,'Costi orari'!F$2:F$6)*M103)))) -> 2307.972 | R103: =((SUMIF('Costi orari'!A$2:A$6,O103,'Costi orari'!E$2:E$6)*K103)+((SUMIF('Costi orari'!A$2:A$6,P103,'Costi orari'!E$2:E$6)*L103)+((SUMIF('Costi orari'!A$2:A$6,P103,'Costi orari'!E$2:E$6)*M103)))) -> 1827 | S103: 1 | T103: 2
A104: Scienza e Tecnologia dei Materiali | B104: Ingegneria dei Materiali | D104: 1 | E104: II | F104: ING-IND/22 | G104: 8 | H104: 8 | K104: 64 | Q104: gratuito

Sheet Costi orari
B1: Base Netto | C1: Base Lordo | D1: tipologia corsi | E1: costo orario Netto | F1: costo orario Lordo
A2: A | B2: 25 | C2: 31.58 | D2: corsi laboratoriali con numerosità fino al 60% della massima | E2: =B2 -> 25 | F2: =C2 -> 31.58
A3: B | B3: 27.5 | C3: 34.74 | D3: corsi laboratoriali con numerosità superiore al 60% della massima | E3: =B3+(B3*0.1) -> 30.25 | F3: =C3+(C3*0.1) -> 38.214
A4: C | B4: 27.5 | C4: 34.74 | D4: corsi frontali con numerosità fino al 60% della massima | E4: =B4+(B4*0.1) -> 30.25 | F4: =C4+(C4*0.1) -> 38.214
A5: D | B5: 30 | C5: 37.9 | D5: corsi frontali con numerosità superiore al 60% della massima | E5: =B5+(B5*0.3) -> 39 | F5: =C5+(C5*0.2) -> 45.48
A6: E | B6: 32.5 | C6: 41.05 | D6: corsi post-lauream | E6: =B6+(B6*0.2) -> 39 | F6: =C6+(C6*0.2) -> 49.26

Sheet Iscritti
F1: frontali | I1: laboratoriali
B2: 1 | C2: 2 | D2: 3 | E2: Numerosità | F2: 1 | G2: 2 | H2: 3 | I2: 1 | J2: 2 | K2: 3
A3: LT Scienze Biologiche | B3: 183 | C3: 145 | D3: 237 | E3: 150 | F3: =IF(B3>$E3+1,"D","C") -> D | G3: =IF(C3>$E3+1,"D","C") -> C | H3: =IF(D3>$E3+1,"D","C") -> D | I3: =IF(B3>$E3+1,"B","A") -> B | J3: =IF(C3>$E3+1,"B","A") -> A | K3: =IF(D3>$E3+1,"B","A") -> B
A4: LT Chimica | B4: 55 | C4: 62 | D4: 84 | E4: 75 | F4: =IF(B4>$E4+1,"D","C") -> C | G4: =IF(C4>$E4+1,"D","C") -> C | H4: =IF(D4>$E4+1,"D","C") -> D | I4: =IF(B4>$E4+1,"B","A") -> A | J4: =IF(C4>$E4+1,"B","A") -> A | K4: =IF(D4>$E4+1,"B","A") -> B
A5: LT Fisica | B5: 104 | C5: 53 | D5: 77 | E5: 75 | F5: D | G5: C | H5: D | I5: B | J5: A | K5: B
A6: LT Scienza dei Materiali | B6: 52 | C6: 36 | D6: 37 | E6: 75 | F6: C | G6: C | H6: C | I6: A | J6: A | K6: A
A7: LT Informatica | B7: 186 | C7: 84 | D7: 198 | E7: 150 | F7: D | G7: C | H7: D | I7: B | J7: A | K7: B
A8: LT Informatica Brindisi | B8: 75 | C8: 33 | D8: 78 | E8: 150 | F8: C | G8: C | H8: C | I8: A | J8: A | K8: A
A9: LT Informatica e Comunicazione Digitale | B9: 102 | C9: 74 | D9: 131 | E9: 150 | F9: C | G9: C | H9: C | I9: A | J9: A | K9: A
A10: LT Informatica e tecnologia per la produzione del software | B10: 145 | C10: 71 | D10: 196 | E10: 150 | F10: C | G10: C | H10: D | I10: A | J10: A | K10: B
A11: LT Scienze della Natura | B11: 175 | C11: 28 | D11: 26 | E11: 75 | F11: D | G11: C | H11: C | I11: B | J11: A | K11: A
A12: LT Scienze Geologiche | B12: 67 | C12: 36 | D12: 34 | E12: 75 | F12: C | G12: C | H12: C | I12: A | J12: A | K12: A
A13: LT Matematica | B13: 74 | C13: 56 | D13: 89 | E13: 75 | F13: C | G13: C | H13: D | I13: A | J13: A | K13: B
A14: LT Scienze e Tecnologie per i Beni Culturali | B14: 20 | C14: 12 | D14: 21 | E14: 150 | F14: C | G14: C | H14: C | I14: A | J14: A | K14: A
A15: LM Scienza per la Diagnostica e Conservazione dei Beni Culturali | B15: 8 | C15: 26 | E15: 100 | F15: C | G15: C | H15: C | I15: A | J15: A | K15: A
A16: LM Fisica | B16: 20 | C16: 43 | E16: 60 | F16: C | G16: C | H16: C | I16: A | J16: A | K16: A
A17: LM Informatica | B17: 70 | C17: 141 | E17: 80 | F17: C | G17: D | H17: C | I17: A | J17: B | K17: A
A18: LM Matematica | B18: 18 | C18: 60 | E18: 60 | F18: C | G18: C | H18: C | I18: A | J18: A | K18: A
A19: LM Scienze della Natura | B19: 11 | C19: 10 | E19: 80 | F19: C | G19: C | H19: C | I19: A | J19: A | K19: A
A20: LM Biologia Ambientale | B20: 10 | C20: 21 | E20: 80 | F20: C | G20: C | H20: C | I20: A | J20: A | K20: A
A21: LM Biologia Cellulare e Molecolare | B21: 27 | C21: 54 | E21: 80 | F21: C | G21: C | H21: C | I21: A | J21: A | K21: A
A22: LM Scienze Biosanitarie | B22: 76 | C22: 101 | E22: 80 | F22: C | G22: D | H22: C | I22: A | J22: B | K22: A
A23: LM Scienza e Tecnologia dei Materiali | B23: 9 | C23: 17 | E23: 80 | F23: C | G23: C | H23: C | I23: A | J23: A | K23: A
A24: LM Scienze Geologiche e Geofisiche | B24: 14 | C24: 25 | E24: 60 | F24: C | G24: C | H24: C | I24: A | J24: A | K24: A
A25: LM Scienze Chimiche | B25: 33 | C25: 43 | E25: 60 | F25: C | G25: C | H25: C | I25: A | J25: A | K25: A
